fUSD/lending_fUSD_20250506
["ID","MTS","AMOUNT","RATE_DAILY","PERIOD"]
[360030825,1746493845792,-450.0,0.00019999,2]
[360030826,1746493845802,-450.0,0.00019999,2]
[360030827,1746493845811,-450.0,0.00019999,2]
[360030829,1746493845820,-450.0,0.00019999,2]
[360030830,1746493845829,-450.0,0.00019999,2]
[360030831,1746493845838,-450.0,0.00019999,2]
[360030832,1746493845847,-450.0,0.00019999,2]
[360030833,1746493845856,-450.0,0.00019999,2]
[360030834,1746493845865,-450.0,0.00019999,2]
[360030835,1746493845873,-450.0,0.00019999,2]
[360030836,1746493845882,-450.0,0.00019999,2]
[360030837,1746493845892,-450.0,0.00019999,2]
[360030838,1746493845902,-450.0,0.00019999,2]
[360030839,1746493845912,-450.0,0.00019999,2]
[360030840,1746493845922,-450.0,0.00019999,2]
[360030841,1746493845931,-450.0,0.00019999,2]
[360030842,1746493845940,-450.0,0.00019999,2]
[360030843,1746493845950,-450.0,0.00019999,2]
[360030844,1746493845959,-450.0,0.00019999,2]
[360030845,1746493845969,-399.74272282,0.00019999,2]
[360030846,1746493845978,-450.37,0.00019999,2]
[360030847,1746493845988,-151.0,0.00019999,2]
[360030848,1746493845998,-579.41,0.00019999,2]
[360030849,1746493846007,-450.0,0.00019999,2]
[360030850,1746493846016,-579.41,0.00019999,2]
[360030851,1746493846026,-450.0,0.00019999,2]
[360030852,1746493846036,-579.41,0.00019999,2]
[360030853,1746493846046,-579.41,0.00019999,2]
[360030854,1746493846055,-579.41,0.00019999,2]
[360030855,1746493846065,-579.41,0.00019999,2]
[360030856,1746493846074,-450.0,0.00019999,2]
[360030857,1746493846084,-579.41,0.00019999,2]
[360030858,1746493846093,-450.0,0.00019999,2]
[360030859,1746493846103,-579.41,0.00019999,2]
[360030860,1746493846112,-579.41,0.00019999,2]
[360030861,1746493846122,-450.0,0.00019999,2]
[360030862,1746493846131,-579.41,0.00019999,2]
[360030863,1746493846141,-450.0,0.00019999,2]
[360030864,1746493846151,-579.41,0.00019999,2]
[360030865,1746493846160,-450.0,0.00019999,2]
[360030866,1746493846169,-579.41,0.00019999,2]
[360030867,1746493846179,-450.0,0.00019999,2]
[360030868,1746493846188,-579.41,0.00019999,2]
[360030869,1746493846197,-450.0,0.00019999,2]
[360030870,1746493846207,-151.0,0.00019999,2]
[360030871,1746493846216,-579.41,0.00019999,2]
[360030872,1746493846226,-450.0,0.00019999,2]
[360030873,1746493846236,-579.41,0.00019999,2]
[360030874,1746493846245,-450.0,0.00019999,2]
[360030875,1746493846254,-450.0,0.00019999,2]
[360030876,1746493846264,-579.41,0.00019999,2]
[360030877,1746493846273,-450.0,0.00019999,2]
[360030878,1746493846283,-579.49,0.00019999,2]
[360030879,1746493846292,-450.0,0.00019999,2]
[360030880,1746493846302,-450.0,0.00019999,2]
[360030881,1746493846313,-486.29808078,0.00019999,2]
[360030882,1746493846323,-151.0,0.00019999,2]
[360030883,1746493846332,-151.0,0.00019999,2]
[360030884,1746493846343,-490.23623014,0.00019999,2]
[360030885,1746493846352,-450.0,0.00019999,2]
[360030886,1746493846361,-450.0,0.00019999,2]
[360030887,1746493846371,-232.5,0.00019999,2]
[360030888,1746493846380,-450.0,0.00019999,2]
[360030889,1746493846390,-450.0,0.00019999,2]
[360030890,1746493846399,-450.0,0.00019999,2]
[360030892,1746493846408,-450.0,0.00019999,2]
[360030893,1746493846418,-450.0,0.00019999,2]
[360030894,1746493846427,-450.0,0.00019999,2]
[360030895,1746493846437,-450.0,0.00019999,2]
[360030896,1746493846446,-450.0,0.00019999,2]
[360030897,1746493846455,-450.0,0.00019999,2]
[360030898,1746493846465,-450.0,0.00019999,2]
[360030899,1746493846474,-409.33,0.00019999,2]
[360030900,1746493846484,-9664.46,0.00019999,2]
[360030901,1746493846493,-9664.46,0.00019999,2]
[360030902,1746493846502,-9664.46,0.00019999,2]
[360030903,1746493846511,-450.0,0.00019999,2]
[360030904,1746493846521,-9664.46,0.00019999,2]
[360030905,1746493846530,-450.0,0.00019999,2]
[360030906,1746493846539,-442.95283147,0.00019999,2]
[360030907,1746493846548,-9664.46,0.00019999,2]
[360030908,1746493846557,-536.29874379,0.00019999,2]
[360030909,1746493846566,-9664.46,0.00019999,2]
[360030910,1746493846576,-9664.46,0.00019999,2]
[360030911,1746493846585,-9664.46,0.00019999,2]
[360030912,1746493846594,-9664.46,0.00019999,2]
[360030913,1746493846603,-9664.46,0.00019999,2]
[360030914,1746493846612,-9664.46,0.00019999,2]
[360030915,1746493846621,-9664.46,0.00019999,2]
[360030916,1746493846630,-9664.46,0.00019999,2]
[360030917,1746493846639,-9664.46,0.00019999,2]
[360030918,1746493846649,-9664.46,0.00019999,2]
[360030919,1746493846658,-9664.46,0.00019999,2]
[360030920,1746493846667,-9664.46,0.00019999,2]
[360030921,1746493846676,-9664.46,0.00019999,2]
[360030922,1746493846685,-9664.46,0.00019999,2]
[360030923,1746493846694,-9664.46,0.00019999,2]
[360030924,1746493846703,-9664.46,0.00019999,2]
[360030925,1746493846712,-9664.6278,0.00019999,2]
[360030926,1746493846721,-426.15,0.00019999,2]
[360030927,1746493846730,-450.0,0.00019999,2]
[360030928,1746493846739,-212.82888837,0.00019999,2]
[360030929,1746493846748,-450.0,0.00019999,2]
[360030930,1746493846757,-450.0,0.00019999,2]
[360030931,1746493846766,-450.0,0.00019999,2]
[360030932,1746493846775,-450.0,0.00019999,2]
[360030933,1746493846784,-450.0,0.00019999,2]
[360030934,1746493846794,-370.81115913,0.00019999,2]
[360030935,1746493846803,-450.0,0.00019999,2]
[360030936,1746493846812,-450.0,0.00019999,2]
[360030937,1746493846821,-450.0,0.00019999,2]
[360030938,1746493846830,-450.0,0.00019999,2]
[360030939,1746493846841,-450.0,0.00019999,2]
[360030940,1746493846850,-450.0,0.00019999,2]
[360030941,1746493846860,-450.0,0.00019999,2]
[360030942,1746493846870,-450.0,0.00019999,2]
[360030943,1746493846879,-450.0,0.00019999,2]
[360030944,1746493846889,-450.0,0.00019999,2]
[360030945,1746493846898,-450.0,0.00019999,2]
[360030946,1746493846907,-361.94611163,0.00019999,2]
[360030947,1746493846917,-359.19,0.00019999,2]
[360030948,1746493846928,-648.07,0.00019999,2]
[360030949,1746493846937,-648.07,0.00019999,2]
[360030950,1746493846946,-648.07,0.00019999,2]
[360030951,1746493846956,-648.07,0.00019999,2]
[360030952,1746493846967,-648.07,0.00019999,2]
[360030953,1746493846977,-648.07,0.00019999,2]
[360030954,1746493846986,-648.07,0.00019999,2]
[360030955,1746493846995,-648.07,0.00019999,2]
[360030956,1746493847004,-648.07,0.00019999,2]
[360030957,1746493847013,-648.07,0.00019999,2]
[360030958,1746493847023,-648.07,0.00019999,2]
[360030959,1746493847032,-648.07,0.00019999,2]
[360030960,1746493847042,-648.07,0.00019999,2]
[360030961,1746493847051,-648.07,0.00019999,2]
[360030962,1746493847062,-648.07,0.00019999,2]
[360030963,1746493847073,-648.07,0.00019999,2]
[360030964,1746493847083,-648.07,0.00019999,2]
[360030965,1746493847092,-648.07,0.00019999,2]
[360030966,1746493847101,-648.07,0.00019999,2]
[360030967,1746493847111,-648.07,0.00019999,2]
[360030968,1746493847121,-648.07,0.00019999,2]
[360030969,1746493847130,-648.12,0.00019999,2]
[360030970,1746493847139,-453.75815258,0.00019999,2]
[360030971,1746493847149,-450.0,0.00019999,2]
[360030972,1746493847158,-151.0,0.00019999,2]
[360030973,1746493847167,-151.0,0.00019999,2]
[360030974,1746493847176,-450.0,0.00019999,2]
[360030975,1746493847186,-450.0,0.00019999,2]
[360030976,1746493847195,-450.0,0.00019999,2]
[360030977,1746493847204,-450.0,0.00019999,2]
[360030978,1746493847213,-450.0,0.00019999,2]
[360030979,1746493847223,-450.0,0.00019999,2]
[360030980,1746493847232,-450.0,0.00019999,2]
[360030981,1746493847241,-450.0,0.00019999,2]
[360030982,1746493847250,-450.0,0.00019999,2]
[360030983,1746493847260,-450.0,0.00019999,2]
[360030984,1746493847269,-450.0,0.00019999,2]
[360030985,1746493847278,-450.0,0.00019999,2]
[360030986,1746493847288,-450.0,0.00019999,2]
[360030987,1746493847298,-450.0,0.00019999,2]
[360030988,1746493847307,-450.0,0.00019999,2]
[360030989,1746493847319,-450.0,0.00019999,2]
[360030990,1746493847329,-450.0,0.00019999,2]
[360030991,1746493847339,-323.4358784,0.00019999,2]
[360030992,1746493847348,-450.0,0.00019999,2]
[360030993,1746493847359,-450.0,0.00019999,2]
[360030994,1746493847368,-536.24,0.00019999,2]
[360030995,1746493847377,-151.0,0.00019999,2]
[360030996,1746493847387,-656.0,0.00019999,2]
[360030997,1746493847396,-747.07047896,0.00019999,2]
[360030998,1746493847405,-634291.93452955,0.00019999,2]
[360030999,1746493847414,-169906.87327965,0.0002,2]
[360031000,1746493847597,-22674.38141239,0.0002,2]
[360031001,1746493847609,-1622.93036247,0.0002,2]
[360031002,1746493847620,-1320.58337072,0.0002,2]
[360031003,1746493847631,-10342.85860827,0.0002,2]
[360031004,1746493847643,-29031.13265712,0.0002,2]
[360031005,1746493847654,-524.34196823,0.0002,2]
[360031006,1746493847742,-391.18475519,0.0001985,2]
[360031007,1746493847752,-151.0,0.00019899,2]
[360031008,1746493847762,-1520.67999413,0.00019899,2]
[360031009,1746493847772,-450.0,0.00019899,2]
[360031010,1746493847781,-80.51143093,0.00019984,2]
[360031011,1746493847793,-369.48856907,0.00019984,2]
[360031012,1746493847803,-450.0,0.00019997,2]
[360031013,1746493847812,-16057.95769678,0.0002,2]
[360031014,1746493847824,-743.71812526,0.0002,2]
[360031015,1746493848153,-500.0,0.00019885,2]
[360031016,1746493848163,-500.0,0.00019885,2]
[360031017,1746493848174,-500.0,0.00019885,2]
[360031018,1746493848183,-461.48651925,0.00019885,2]
[360031019,1746493848193,-100.44689348,0.00019899,2]
[360031020,1746493848205,-349.55310652,0.00019899,2]
[360031021,1746493848215,-450.0,0.00019899,2]
[360031022,1746493848224,-707.34984872,0.0002,2]
[360031023,1746493869470,258.46413049,0.00019079,2]
[360031024,1746493869494,917.29586951,0.00019079,2]
[360031025,1746493874196,431.22961645,0.00019,2]
[360031026,1746493920396,389.42,0.00019038,2]
[360031027,1746493923025,400.0,0.00019,6]
[360031028,1746493927353,800.0,0.000191,6]
[360031029,1746493929465,1062.05451404,0.000192,7]
[360031030,1746493929486,137.94548596,0.000192,7]
[360031031,1746493930688,200.05,0.00030136,120]
[360031032,1746493931598,1600.0,0.000193,7]
[360031033,1746493933691,2000.0,0.000194,7]
[360031034,1746493935740,1573.0,0.00030137,120]
[360031035,1746493935780,262.05451404,0.000195,7]
[360031036,1746493935806,137.94548596,0.000195,7]
[360031037,1746493944321,1000.0,0.00018986,2]
[360031038,1746493947951,1823.5730092,0.0003,30]
[360031039,1746493956356,329.809291,0.00019502,2]
[360031040,1746494008103,1161.1,0.00018982,2]
[360031041,1746494047827,5000.0,0.00030137,120]
[360031042,1746494241656,163.55,0.00018979,2]
[360031045,1746494303961,473.72,0.00017049,2]
[360031046,1746494304199,473.72,0.00019313,2]
[360031047,1746494319648,302.0,0.00030137,120]
[360031048,1746494547497,500.0,0.00027945,30]
[360031049,1746494547732,500.0,0.00029315,35]
[360031050,1746494599280,3392.36954322,0.000301,120]
[360031051,1746494605333,163.3,0.00019472,2]
[360031052,1746494609673,96.85522304,0.00018896,2]
[360031053,1746494609694,103.14477696,0.00018896,2]
[360031054,1746494610120,380.07,0.00018905,2]
[360031055,1746494660650,230.0,0.00030137,120]
[360031057,1746494735809,463.47168207,0.000301,120]
[360031063,1746494902127,1681.41,0.00018926,2]
[360031064,1746494917952,30410.1567609,0.0003,120]
[360031069,1746495004561,1000.0,0.0001893,2]
[360031070,1746495015477,295.01,0.000298,31]
[360031071,1746495018068,150.0,0.00018919,2]
[360031072,1746495027962,237.96,0.00018906,2]
[360031080,1746495032135,-166.64307559,0.000196,2]
[360031081,1746495032145,-200.0,0.000196,2]
[360031082,1746495032155,-141.64198355,0.00019625,2]
[360031083,1746495032337,-108.35801645,0.00019625,2]
[360031084,1746495032347,-1200.0,0.00019649,2]
[360031085,1746495032356,-300.0,0.00019649,2]
[360031086,1746495032366,-300.0,0.00019649,2]
[360031087,1746495032375,-200.0,0.00019649,2]
[360031088,1746495032384,-364.3463431,0.0001965,2]
[360031089,1746495032394,-10496.95593779,0.0001965,2]
[360031090,1746495032405,-456.52224891,0.0001965,2]
[360031091,1746495032421,-1050.05905355,0.0001965,2]
[360031092,1746495032464,-549.0,0.0001965,2]
[360031093,1746495032481,-18736.16104103,0.0001965,2]
[360031137,1746495038210,-326.13337024,0.0001965,2]
[360031138,1746495038222,-951.13186436,0.0001965,2]
[360031139,1746495038234,-569.76946953,0.0001965,2]
[360031140,1746495038246,-2875.34148816,0.0001965,2]
[360031141,1746495038257,-3373.40000004,0.0001965,2]
[360031142,1746495038300,-4977.39481898,0.0001965,2]
[360031143,1746495038391,-2128.53015,0.0001965,2]
[360031144,1746495038403,-1848.99999991,0.0001965,2]
[360031145,1746495038414,-757.5999999,0.0001965,2]
[360031146,1746495038481,-972.53991556,0.0001965,2]
[360031147,1746495038492,-1931.50605029,0.0001965,2]
[360031152,1746495040347,-954.54345875,0.0001965,2]
[360031153,1746495040358,-4148.92455475,0.0001965,2]
[360031154,1746495040370,-760.904,0.0001965,2]
[360031155,1746495040381,-516.8250225,0.0001965,2]
[360031156,1746495040437,-9711.20341013,0.0001965,2]
[360031157,1746495040446,-2282.99118273,0.000197,2]
[360031158,1746495040459,-281.0,0.000197,2]
[360031159,1746495040468,-276.6901,0.000197,2]
[360031160,1746495040477,-546.02686278,0.00019722,2]
[360031161,1746495040526,-1570.86730379,0.00019722,2]
[360031162,1746495040616,-166.09701616,0.00019722,2]
[360031163,1746495040625,-1833.90298384,0.00019744,2]
[360031164,1746495040843,-449.08819889,0.00019744,2]
[360031165,1746495040852,-1842.36516704,0.00019767,2]
[360031170,1746495043259,-440.62601569,0.00019767,2]
[360031172,1746495043269,-200.0,0.00019782,2]
[360031173,1746495043278,-207.4,0.00019788,2]
[360031174,1746495043287,-2282.99118273,0.00019789,2]
[360031175,1746495043297,-229.86332137,0.00019797,2]
[360031176,1746495043306,-280.24266096,0.00019797,2]
[360031177,1746495043315,-500.0,0.00019797,2]
[360031178,1746495043325,-500.0,0.00019797,2]
[360031179,1746495043335,-641.23095375,0.00019797,2]
[360031180,1746495043344,-500.0,0.00019797,2]
[360031181,1746495043353,-41780.81572153,0.000198,2]
[360031182,1746495043365,-503.28004991,0.000198,2]
[360031183,1746495043389,-1300.0,0.000198,2]
[360031184,1746495043400,-1902.23181725,0.000198,2]
[360031185,1746495043435,-82590.55121131,0.000198,2]
[360031186,1746495043445,-162.33,0.000198,2]
[360031187,1746495043454,-451.85,0.000198,2]
[360031188,1746495043464,-150.0,0.000198,2]
[360031189,1746495043473,-802.19,0.000198,2]
[360031190,1746495043482,-456.46,0.000198,2]
[360031191,1746495043492,-352.26,0.000198,2]
[360031192,1746495043502,-162.33,0.000198,2]
[360031193,1746495043511,-456.46,0.000198,2]
[360031194,1746495043520,-352.26,0.000198,2]
[360031195,1746495043530,-162.33,0.000198,2]
[360031196,1746495043539,-456.46,0.000198,2]
[360031197,1746495043549,-150.0,0.000198,2]
[360031198,1746495043559,-795.4,0.000198,2]
[360031199,1746495043570,-352.26,0.000198,2]
[360031200,1746495043580,-162.33,0.000198,2]
[360031201,1746495043590,-150.0,0.000198,2]
[360031202,1746495043600,-370.11,0.000198,2]
[360031203,1746495043610,-456.46,0.000198,2]
[360031204,1746495043619,-341.88,0.000198,2]
[360031205,1746495043628,-451.85,0.000198,2]
[360031206,1746495043638,-1154.63,0.000198,2]
[360031207,1746495043648,-150.0,0.000198,2]
[360031208,1746495043658,-162.33,0.000198,2]
[360031209,1746495043668,-939.73,0.000198,2]
[360031210,1746495043676,-456.46,0.000198,2]
[360031211,1746495043685,-162.33,0.000198,2]
[360031212,1746495043693,-451.85,0.000198,2]
[360031213,1746495043702,-150.0,0.000198,2]
[360031214,1746495043711,-1154.63,0.000198,2]
[360031215,1746495043720,-451.85,0.000198,2]
[360031216,1746495043728,-150.0,0.000198,2]
[360031217,1746495043737,-162.33,0.000198,2]
[360031218,1746495043746,-802.19,0.000198,2]
[360031219,1746495043755,-150.0,0.000198,2]
[360031220,1746495043764,-912.68,0.000198,2]
[360031221,1746495043777,-451.85,0.000198,2]
[360031223,1746495043787,-675.1,0.000198,2]
[360031224,1746495043796,-150.0,0.000198,2]
[360031225,1746495043805,-1154.63,0.000198,2]
[360031226,1746495043815,-162.33,0.000198,2]
[360031227,1746495043824,-451.85,0.000198,2]
[360031228,1746495043834,-802.19,0.000198,2]
[360031229,1746495043844,-150.0,0.000198,2]
[360031230,1746495043854,-150.0,0.000198,2]
[360031231,1746495043864,-352.26,0.000198,2]
[360031232,1746495043873,-451.85,0.000198,2]
[360031233,1746495043883,-162.33,0.000198,2]
[360031234,1746495043893,-150.0,0.000198,2]
[360031235,1746495043902,-352.26,0.000198,2]
[360031236,1746495043912,-451.85,0.000198,2]
[360031237,1746495043922,-162.33,0.000198,2]
[360031238,1746495043931,-456.46,0.000198,2]
[360031239,1746495043942,-352.26,0.000198,2]
[360031240,1746495043952,-150.0,0.000198,2]
[360031241,1746495043961,-2282.99118273,0.00019811,2]
[360031242,1746495043970,-2282.99118273,0.00019833,2]
[360031243,1746495043979,-197.192869,0.00019852,2]
[360031244,1746495043988,-451.05672488,0.00019855,2]
[360031245,1746495043998,-2282.99118273,0.00019856,2]
[360031246,1746495044011,-2282.99118273,0.00019878,2]
[360031247,1746495044026,-168.08360176,0.00019884,2]
[360031248,1746495044253,-5932.0,0.00019893,2]
[360031249,1746495044263,-218.17,0.00019899,2]
[360031250,1746495044272,-450.0,0.00019899,2]
[360031251,1746495044282,-162.33,0.000199,2]
[360031252,1746495044292,-451.85,0.000199,2]
[360031253,1746495044302,-162.33,0.000199,2]
[360031254,1746495044311,-451.85,0.000199,2]
[360031255,1746495044321,-150.0,0.000199,2]
[360031256,1746495044331,-161.48,0.000199,2]
[360031257,1746495044340,-802.19,0.000199,2]
[360031258,1746495044350,-150.0,0.000199,2]
[360031259,1746495044359,-456.46,0.000199,2]
[360031260,1746495044369,-451.85,0.000199,2]
[360031261,1746495044379,-2307.43,0.000199,2]
[360031262,1746495044389,-162.33,0.000199,2]
[360031263,1746495044399,-150.0,0.000199,2]
[360031264,1746495044408,-802.19,0.000199,2]
[360031265,1746495044417,-456.46,0.000199,2]
[360031266,1746495044427,-365.82,0.000199,2]
[360031267,1746495044436,-162.33,0.000199,2]
[360031268,1746495044446,-150.0,0.000199,2]
[360031269,1746495044456,-450.95,0.000199,2]
[360031270,1746495044465,-802.19,0.000199,2]
[360031271,1746495044475,-454.49,0.000199,2]
[360031272,1746495044486,-150.0,0.000199,2]
[360031273,1746495044495,-352.26,0.000199,2]
[360031274,1746495044504,-802.19,0.000199,2]
[360031275,1746495044514,-456.46,0.000199,2]
[360031276,1746495044524,-162.33,0.000199,2]
[360031277,1746495044533,-313.36,0.000199,2]
[360031278,1746495044543,-451.85,0.000199,2]
[360031279,1746495044552,-150.0,0.000199,2]
[360031280,1746495044561,-801.78,0.000199,2]
[360031281,1746495044571,-352.26,0.000199,2]
[360031282,1746495044591,-162.21,0.000199,2]
[360031283,1746495044601,-456.46,0.000199,2]
[360031284,1746495044611,-451.85,0.000199,2]
[360031285,1746495044620,-352.26,0.000199,2]
[360031286,1746495044633,-802.19,0.000199,2]
[360031287,1746495044647,-456.46,0.000199,2]
[360031288,1746495044657,-761.37,0.000199,2]
[360031289,1746495044667,-162.33,0.000199,2]
[360031290,1746495044677,-456.46,0.000199,2]
[360031291,1746495044687,-162.33,0.000199,2]
[360031292,1746495044696,-456.46,0.000199,2]
[360031293,1746495044706,-802.19,0.000199,2]
[360031294,1746495044715,-352.26,0.000199,2]
[360031295,1746495044725,-451.85,0.000199,2]
[360031296,1746495044735,-162.33,0.000199,2]
[360031297,1746495044744,-352.26,0.000199,2]
[360031298,1746495044754,-456.46,0.000199,2]
[360031299,1746495044764,-150.0,0.000199,2]
[360031300,1746495044777,-2282.99118273,0.000199,2]
[360031301,1746495044787,-280.8831101,0.000199,2]
[360031302,1746495044797,-151.8899937,0.00019958,2]
[360031303,1746495044806,-197.192869,0.00019972,2]
[360031304,1746495044816,-500.0,0.00019973,2]
[360031305,1746495044825,-500.0,0.00019973,2]
[360031306,1746495044835,-450.0,0.00019984,2]
[360031307,1746495044844,-519.29,0.00019984,2]
[360031308,1746495044854,-454.24530002,0.00019984,2]
[360031309,1746495044864,-450.0,0.00019984,2]
[360031310,1746495044874,-450.0,0.00019984,2]
[360031311,1746495044883,-450.0,0.00019984,2]
[360031312,1746495044894,-450.0,0.00019984,2]
[360031313,1746495044904,-450.0,0.00019984,2]
[360031314,1746495044914,-450.0,0.00019984,2]
[360031315,1746495044924,-450.0,0.00019984,2]
[360031316,1746495044934,-450.0,0.00019984,2]
[360031317,1746495044943,-450.0,0.00019984,2]
[360031318,1746495044953,-450.0,0.00019984,2]
[360031319,1746495044963,-450.0,0.00019984,2]
[360031320,1746495044973,-450.0,0.00019984,2]
[360031321,1746495044983,-450.0,0.00019984,2]
[360031322,1746495044993,-450.0,0.00019984,2]
[360031323,1746495045003,-450.0,0.00019984,2]
[360031324,1746495045012,-569.31,0.00019984,2]
[360031325,1746495045022,-450.0,0.00019984,2]
[360031326,1746495045031,-197.57141913,0.00019984,2]
[360031327,1746495045041,-450.0,0.00019984,2]
[360031328,1746495045051,-450.0,0.00019984,2]
[360031329,1746495045060,-450.0,0.00019984,2]
[360031330,1746495045070,-450.0,0.00019984,2]
[360031331,1746495045079,-450.0,0.00019984,2]
[360031332,1746495045089,-474.77390612,0.00019984,2]
[360031333,1746495045099,-470.88004377,0.00019984,2]
[360031334,1746495045108,-450.0,0.00019984,2]
[360031335,1746495045117,-450.0,0.00019984,2]
[360031336,1746495045127,-195.4,0.00019984,2]
[360031337,1746495045137,-450.0,0.00019984,2]
[360031338,1746495045146,-581.49,0.00019984,2]
[360031339,1746495045156,-450.0,0.00019984,2]
[360031340,1746495045165,-47.00847035,0.00019984,2]
[360031341,1746495045180,-402.99152965,0.00019984,2]
[360031342,1746495045190,-450.0,0.00019984,2]
[360031343,1746495045199,-450.0,0.00019984,2]
[360031344,1746495045208,-488.8,0.00019984,2]
[360031345,1746495045218,-450.0,0.00019984,2]
[360031346,1746495045227,-450.0,0.00019984,2]
[360031347,1746495045237,-450.0,0.00019984,2]
[360031348,1746495045247,-496.97836039,0.00019984,2]
[360031349,1746495045257,-450.0,0.00019984,2]
[360031350,1746495045267,-450.0,0.00019984,2]
[360031351,1746495045276,-450.0,0.00019984,2]
[360031352,1746495045285,-450.0,0.00019984,2]
[360031353,1746495045294,-450.0,0.00019984,2]
[360031354,1746495045306,-450.0,0.00019984,2]
[360031355,1746495045315,-450.0,0.00019984,2]
[360031356,1746495045325,-450.0,0.00019984,2]
[360031357,1746495045334,-450.0,0.00019984,2]
[360031358,1746495045344,-450.0,0.00019984,2]
[360031359,1746495045353,-450.0,0.00019984,2]
[360031360,1746495045362,-450.0,0.00019984,2]
[360031361,1746495045371,-450.0,0.00019984,2]
[360031362,1746495045380,-450.0,0.00019984,2]
[360031363,1746495045389,-450.0,0.00019984,2]
[360031364,1746495045398,-450.0,0.00019984,2]
[360031365,1746495045408,-401.71363022,0.00019984,2]
[360031366,1746495045417,-450.0,0.00019984,2]
[360031367,1746495045426,-450.0,0.00019984,2]
[360031368,1746495045435,-450.0,0.00019984,2]
[360031369,1746495045444,-450.0,0.00019984,2]
[360031370,1746495045453,-522.71,0.00019984,2]
[360031371,1746495045462,-450.0,0.00019984,2]
[360031372,1746495045471,-750.93,0.00019984,2]
[360031373,1746495045480,-450.0,0.00019984,2]
[360031374,1746495045490,-450.0,0.00019984,2]
[360031375,1746495045499,-450.0,0.00019984,2]
[360031376,1746495045508,-450.0,0.00019984,2]
[360031377,1746495045517,-450.0,0.00019984,2]
[360031378,1746495045526,-450.0,0.00019984,2]
[360031379,1746495045535,-1994.68764945,0.00019984,2]
[360031380,1746495045544,-450.0,0.00019984,2]
[360031381,1746495045553,-450.0,0.00019984,2]
[360031382,1746495045563,-450.0,0.00019984,2]
[360031383,1746495045572,-450.0,0.00019984,2]
[360031384,1746495045582,-450.0,0.00019984,2]
[360031385,1746495045591,-450.0,0.00019984,2]
[360031386,1746495045600,-450.0,0.00019984,2]
[360031387,1746495045609,-450.0,0.00019984,2]
[360031388,1746495045618,-450.0,0.00019984,2]
[360031389,1746495045628,-181.29663274,0.00019984,2]
[360031390,1746495045637,-450.0,0.00019984,2]
[360031391,1746495045647,-450.0,0.00019984,2]
[360031392,1746495045656,-332.33295133,0.00019984,2]
[360031393,1746495045668,-494.20056708,0.00019984,2]
[360031394,1746495045678,-487.34442581,0.00019984,2]
[360031395,1746495045687,-450.0,0.00019984,2]
[360031396,1746495045697,-450.0,0.00019984,2]
[360031397,1746495045706,-450.0,0.00019984,2]
[360031398,1746495045716,-181.36884607,0.00019984,2]